[Event "Titled Tuesday Blitz May 9 Late 2023"]
[White "Bolourchifard, Farzad"]
[Black "merinasian"]
[WhiteFideId "12510084"]
[WhiteElo "2317"]
[BlackElo "2432"]
[Result "1/2-1/2"]
[Round "02"]
[TimeControl "180+2"]
[Date "2023.05.09"]
[WhiteClock "0:00:10"]
[BlackClock "0:00:21"]

1. d4 {[%clk 0:03:00]}  Nf6 {[%clk 0:02:57]} 2. Nf3 {[%clk 0:03:00]}  e6 {[%clk 0:02:57]} 3. c4 {[%clk 0:03:00]}  b6 {[%clk 0:02:57]} 4. a3 {[%clk 0:02:59]}  Bb7 {[%clk 0:02:57]} 5. Nc3 {[%clk 0:03:00]}  Ne4 {[%clk 0:02:50]} 6. Nxe4 {[%clk 0:02:31]}  Bxe4 {[%clk 0:02:46]} 7. Bf4 {[%clk 0:02:32]}  Be7 {[%clk 0:02:36]} 8. e3 {[%clk 0:02:31]}  O-O {[%clk 0:02:36]} 9. Bd3 {[%clk 0:02:28]}  Bxd3 {[%clk 0:02:30]} 10. Qxd3 {[%clk 0:02:29]}  d6 {[%clk 0:02:30]} 11. O-O {[%clk 0:02:26]}  Nd7 {[%clk 0:02:30]} 12. b4 {[%clk 0:02:21]}  f5 {[%clk 0:02:29]} 13. h3 {[%clk 0:01:38]}  h6 {[%clk 0:02:23]} 14. Bh2 {[%clk 0:01:36]}  Nf6 {[%clk 0:02:17]} 15. Nd2 {[%clk 0:01:36]}  Qe8 {[%clk 0:02:08]} 16. e4 {[%clk 0:01:31]}  Nh5 {[%clk 0:01:40]} 17. exf5 {[%clk 0:01:25]}  exf5 {[%clk 0:01:41]} 18. Rae1 {[%clk 0:01:05]}  Qf7 {[%clk 0:01:39]} 19. d5 {[%clk 0:00:24]}  Bf6 {[%clk 0:01:24]} 20. Re6 {[%clk 0:00:21]}  g6 {[%clk 0:01:19]} 21. Rfe1 {[%clk 0:00:21]}  Ng7 {[%clk 0:01:19]} 22. R6e2 {[%clk 0:00:20]}  Rae8 {[%clk 0:01:18]} 23. Nf3 {[%clk 0:00:21]}  Rxe2 {[%clk 0:01:16]} 24. Rxe2 {[%clk 0:00:20]}  Re8 {[%clk 0:01:16]} 25. Bf4 {[%clk 0:00:20]}  g5 {[%clk 0:01:13]} 26. Bc1 {[%clk 0:00:20]}  f4 {[%clk 0:01:10]} 27. Kf1 {[%clk 0:00:20]}  Rxe2 {[%clk 0:01:09]} 28. Qxe2 {[%clk 0:00:20]}  Qg6 {[%clk 0:01:07]} 29. g3 {[%clk 0:00:20]}  Qb1 {[%clk 0:01:05]} 30. Qe1 {[%clk 0:00:21]}  fxg3 {[%clk 0:01:02]} 31. fxg3 {[%clk 0:00:21]}  Qd3+ {[%clk 0:00:58]} 32. Qe2 {[%clk 0:00:21]}  Qb1 {[%clk 0:00:57]} 33. Qd2 {[%clk 0:00:18]}  Qb3 {[%clk 0:00:56]} 34. Qe2 {[%clk 0:00:17]}  Kh7 {[%clk 0:00:50]} 35. Kg2 {[%clk 0:00:16]}  Qb1 {[%clk 0:00:49]} 36. Qd2 {[%clk 0:00:12]}  Qe4 {[%clk 0:00:46]} 37. Qe3 {[%clk 0:00:10]}  Qxc4 {[%clk 0:00:45]} 38. Qd2 {[%clk 0:00:06]}  Qc3 {[%clk 0:00:42]} 39. Qxc3 {[%clk 0:00:06]}  Bxc3 {[%clk 0:00:42]} 40. Kf2 {[%clk 0:00:07]}  Kg6 {[%clk 0:00:40]} 41. g4 {[%clk 0:00:07]}  Ne8 {[%clk 0:00:39]} 42. Bd2 {[%clk 0:00:05]}  Bxd2 {[%clk 0:00:38]} 43. Nxd2 {[%clk 0:00:06]}  Nf6 {[%clk 0:00:38]} 44. Nb3 {[%clk 0:00:07]}  Nxd5 {[%clk 0:00:38]} 45. Nd4 {[%clk 0:00:08]}  Nf4 {[%clk 0:00:37]} 46. Kg3 {[%clk 0:00:07]}  a6 {[%clk 0:00:36]} 47. b5 {[%clk 0:00:06]}  axb5 {[%clk 0:00:34]} 48. Nxb5 {[%clk 0:00:07]}  Ne6 {[%clk 0:00:34]} 49. Kf3 {[%clk 0:00:07]}  Kf6 {[%clk 0:00:33]} 50. Ke4 {[%clk 0:00:08]}  Nf4 {[%clk 0:00:28]} 51. Nxc7 {[%clk 0:00:07]}  Nxh3 {[%clk 0:00:28]} 52. Nd5+ {[%clk 0:00:08]}  Ke6 {[%clk 0:00:28]} 53. Nxb6 {[%clk 0:00:08]}  Nf2+ {[%clk 0:00:29]} 54. Kf3 {[%clk 0:00:09]}  Nd3 {[%clk 0:00:29]} 55. a4 {[%clk 0:00:09]}  Nc5 {[%clk 0:00:29]} 56. a5 {[%clk 0:00:09]}  d5 {[%clk 0:00:29]} 57. Ke3 {[%clk 0:00:09]}  Kd6 {[%clk 0:00:27]} 58. Nc8+ {[%clk 0:00:06]}  Kd7 {[%clk 0:00:25]} 59. Nb6+ {[%clk 0:00:06]}  Kc6 {[%clk 0:00:26]} 60. Nc8 {[%clk 0:00:06]}  Kb5 {[%clk 0:00:23]} 61. Ne7 {[%clk 0:00:06]}  Kxa5 {[%clk 0:00:23]} 62. Nxd5 {[%clk 0:00:06]}  Kb5 {[%clk 0:00:24]} 63. Ne7 {[%clk 0:00:07]}  Nd7 {[%clk 0:00:21]} 64. Ng8 {[%clk 0:00:07]}  Ne5 {[%clk 0:00:20]} 65. Nxh6 {[%clk 0:00:07]}  Kc5 {[%clk 0:00:20]} 66. Ke4 {[%clk 0:00:08]}  Nxg4 {[%clk 0:00:20]} 67. Nxg4 {[%clk 0:00:08]}  Kd6 {[%clk 0:00:20]} 68. Kf5 {[%clk 0:00:09]}  Kd5 {[%clk 0:00:21]} 69. Kxg5 {[%clk 0:00:10]} 1/2-1/2


[Site "https://www.chess.com"]

[Event "Titled Tuesday Blitz May 9 Late 2023"]
[White "Gritsenko, Nikolai"]
[Black "Mazurkiewicz, Michal"]
[WhiteFideId "14112493"]
[BlackFideId "1124943"]
[WhiteElo "2389"]
[BlackElo "2054"]
[Result "1/2-1/2"]
[Round "02"]
[TimeControl "180+2"]
[Date "2023.05.09"]
[WhiteClock "0:00:34"]
[BlackClock "0:00:15"]

1. e4 {[%clk 0:03:00]}  d6 {[%clk 0:02:59]} 2. Nf3 {[%clk 0:03:00]}  Nf6 {[%clk 0:03:00]} 3. Nc3 {[%clk 0:03:00]}  c6 {[%clk 0:03:00]} 4. d4 {[%clk 0:03:00]}  Bg4 {[%clk 0:03:01]} 5. Be2 {[%clk 0:03:00]}  e6 {[%clk 0:03:01]} 6. Be3 {[%clk 0:02:59]}  d5 {[%clk 0:03:01]} 7. Nd2 {[%clk 0:02:57]}  Bxe2 {[%clk 0:02:58]} 8. Qxe2 {[%clk 0:02:57]}  Qb6 {[%clk 0:02:40]} 9. Nb3 {[%clk 0:02:40]}  dxe4 {[%clk 0:02:36]} 10. d5 {[%clk 0:02:38]}  Qa6 {[%clk 0:02:26]} 11. dxe6 {[%clk 0:02:35]}  fxe6 {[%clk 0:02:13]} 12. Qxa6 {[%clk 0:02:29]}  Nxa6 {[%clk 0:02:14]} 13. O-O-O {[%clk 0:02:22]}  Bb4 {[%clk 0:02:11]} 14. Bd4 {[%clk 0:02:17]}  O-O-O {[%clk 0:01:52]} 15. a3 {[%clk 0:02:05]}  Bxc3 {[%clk 0:01:43]} 16. Bxc3 {[%clk 0:02:05]}  Nd5 {[%clk 0:01:25]} 17. Bd2 {[%clk 0:01:59]}  Rhf8 {[%clk 0:01:20]} 18. Rhf1 {[%clk 0:01:51]}  Rd7 {[%clk 0:01:01]} 19. Nd4 {[%clk 0:01:32]}  Nac7 {[%clk 0:01:01]} 20. Rde1 {[%clk 0:01:16]}  e5 {[%clk 0:00:32]} 21. Nb3 {[%clk 0:01:12]}  Rdf7 {[%clk 0:00:32]} 22. Re2 {[%clk 0:01:05]}  e3 {[%clk 0:00:30]} 23. Bxe3 {[%clk 0:01:02]}  Nxe3 {[%clk 0:00:30]} 24. Rxe3 {[%clk 0:01:02]}  Rxf2 {[%clk 0:00:30]} 25. Rg1 {[%clk 0:00:55]}  R8f5 {[%clk 0:00:30]} 26. Nd2 {[%clk 0:00:50]}  Nd5 {[%clk 0:00:29]} 27. Rf3 {[%clk 0:00:42]}  R5xf3 {[%clk 0:00:25]} 28. Nxf3 {[%clk 0:00:41]}  e4 {[%clk 0:00:24]} 29. Nd2 {[%clk 0:00:36]}  e3 {[%clk 0:00:24]} 30. Ne4 {[%clk 0:00:36]}  Rf4 {[%clk 0:00:23]} 31. Ng3 {[%clk 0:00:35]}  Rf2 {[%clk 0:00:23]} 32. Ne4 {[%clk 0:00:35]}  Rf4 {[%clk 0:00:23]} 33. Ng3 {[%clk 0:00:35]}  Rf2 {[%clk 0:00:15]} 34. Ne4 {[%clk 0:00:34]} 1/2-1/2


[Site "https://www.chess.com"]

[Event "Titled Tuesday Blitz May 9 Late 2023"]
[White "Thomforde-Toates, Noah"]
[Black "Avalos Parra, Joao"]
[WhiteFideId "30951992"]
[BlackFideId "3402541"]
[WhiteElo "2705"]
[BlackElo "2173"]
[Result "1/2-1/2"]
[Round "02"]
[TimeControl "180+2"]
[Date "2023.05.09"]
[WhiteClock "0:01:34"]
[BlackClock "0:00:15"]

1. d4 {[%clk 0:03:00]}  d5 {[%clk 0:02:57]} 2. Nc3 {[%clk 0:03:00]}  Nf6 {[%clk 0:02:56]} 3. Bf4 {[%clk 0:03:00]}  c6 {[%clk 0:02:54]} 4. f3 {[%clk 0:03:00]}  e6 {[%clk 0:02:54]} 5. a3 {[%clk 0:02:58]}  Nbd7 {[%clk 0:02:54]} 6. e4 {[%clk 0:02:58]}  Qb6 {[%clk 0:02:53]} 7. Nh3 {[%clk 0:02:55]}  a6 {[%clk 0:02:23]} 8. Nf2 {[%clk 0:02:51]}  c5 {[%clk 0:02:21]} 9. dxc5 {[%clk 0:02:50]}  Bxc5 {[%clk 0:02:22]} 10. Nd3 {[%clk 0:02:50]}  Be3 {[%clk 0:01:50]} 11. Bxe3 {[%clk 0:02:36]}  Qxe3+ {[%clk 0:01:51]} 12. Qe2 {[%clk 0:02:37]}  Qxe2+ {[%clk 0:01:49]} 13. Bxe2 {[%clk 0:02:37]}  dxe4 {[%clk 0:01:50]} 14. fxe4 {[%clk 0:02:37]}  b5 {[%clk 0:01:36]} 15. e5 {[%clk 0:02:37]}  Ng8 {[%clk 0:01:32]} 16. Ne4 {[%clk 0:02:36]}  f6 {[%clk 0:01:21]} 17. Nd6+ {[%clk 0:02:33]}  Ke7 {[%clk 0:01:21]} 18. exf6+ {[%clk 0:02:32]}  gxf6 {[%clk 0:01:18]} 19. Nxc8+ {[%clk 0:02:31]}  Rxc8 {[%clk 0:01:19]} 20. Kd2 {[%clk 0:02:31]}  Nh6 {[%clk 0:01:18]} 21. Rae1 {[%clk 0:02:30]}  Rhg8 {[%clk 0:01:17]} 22. g3 {[%clk 0:02:30]}  Nf5 {[%clk 0:01:17]} 23. Rhf1 {[%clk 0:02:29]}  Nd4 {[%clk 0:01:14]} 24. Bd1 {[%clk 0:02:29]}  e5 {[%clk 0:01:12]} 25. c3 {[%clk 0:02:29]}  Ne6 {[%clk 0:01:12]} 26. Bb3 {[%clk 0:02:28]}  Ndc5 {[%clk 0:01:12]} 27. Nxc5 {[%clk 0:02:26]}  Rxc5 {[%clk 0:01:09]} 28. Kc1 {[%clk 0:02:26]}  Rd8 {[%clk 0:01:05]} 29. Re2 {[%clk 0:02:25]}  Nd4 {[%clk 0:01:04]} 30. Ref2 {[%clk 0:02:02]}  Nxb3+ {[%clk 0:00:59]} 31. Kc2 {[%clk 0:02:02]}  Nd4+ {[%clk 0:00:57]} 32. Kb1 {[%clk 0:02:03]}  Ne6 {[%clk 0:00:49]} 33. Rxf6 {[%clk 0:02:02]}  Rcd5 {[%clk 0:00:40]} 34. Rf7+ {[%clk 0:02:01]}  Kd6 {[%clk 0:00:39]} 35. Rxh7 {[%clk 0:01:59]}  Rf8 {[%clk 0:00:39]} 36. Rxf8 {[%clk 0:01:58]}  Nxf8 {[%clk 0:00:40]} 37. Kc2 {[%clk 0:01:58]}  e4 {[%clk 0:00:39]} 38. Rh4 {[%clk 0:01:53]}  e3 {[%clk 0:00:29]} 39. Re4 {[%clk 0:01:51]}  Rd2+ {[%clk 0:00:29]} 40. Kb3 {[%clk 0:01:48]}  e2 {[%clk 0:00:27]} 41. c4 {[%clk 0:01:41]}  Ne6 {[%clk 0:00:26]} 42. Kc3 {[%clk 0:01:40]}  e1=Q {[%clk 0:00:12]} 43. Rxe1 {[%clk 0:01:38]}  Rxh2 {[%clk 0:00:12]} 44. cxb5 {[%clk 0:01:38]}  axb5 {[%clk 0:00:12]} 45. Re4 {[%clk 0:01:38]}  Nc5 {[%clk 0:00:12]} 46. Rd4+ {[%clk 0:01:32]}  Kc6 {[%clk 0:00:12]} 47. b3 {[%clk 0:01:33]}  Rg2 {[%clk 0:00:12]} 48. Rg4 {[%clk 0:01:33]}  Rxg3+ {[%clk 0:00:11]} 49. Rxg3 {[%clk 0:01:33]}  Ne4+ {[%clk 0:00:12]} 50. Kb4 {[%clk 0:01:33]}  Nxg3 {[%clk 0:00:13]} 51. a4 {[%clk 0:01:31]}  bxa4 {[%clk 0:00:12]} 52. bxa4 {[%clk 0:01:32]}  Kb6 {[%clk 0:00:13]} 53. a5+ {[%clk 0:01:31]}  Ka6 {[%clk 0:00:14]} 54. Ka4 {[%clk 0:01:32]}  Nf5 {[%clk 0:00:13]} 55. Kb4 {[%clk 0:01:33]}  Ne7 {[%clk 0:00:13]} 56. Ka4 {[%clk 0:01:34]}  Nc6 {[%clk 0:00:14]} 57. Ka3 {[%clk 0:01:34]}  Nxa5 {[%clk 0:00:15]} 1/2-1/2


[Site "https://www.chess.com"]

[Event "Titled Tuesday Blitz May 9 Late 2023"]
[White "Ryan, Joseph"]
[Black "Bitoon, Richard"]
[WhiteFideId "2500426"]
[BlackFideId "5201110"]
[WhiteElo "2389"]
[BlackElo "2374"]
[Result "0-1"]
[Round "02"]
[TimeControl "180+2"]
[Date "2023.05.09"]
[WhiteClock "0:00:51"]
[BlackClock "0:00:40"]

1. d4 {[%clk 0:03:00]}  Nf6 {[%clk 0:02:59]} 2. Nf3 {[%clk 0:03:00]}  g6 {[%clk 0:02:59]} 3. Nc3 {[%clk 0:02:58]}  d5 {[%clk 0:02:53]} 4. Bf4 {[%clk 0:02:58]}  c5 {[%clk 0:02:44]} 5. e3 {[%clk 0:02:55]}  Bg7 {[%clk 0:02:36]} 6. Nb5 {[%clk 0:02:52]}  Na6 {[%clk 0:02:35]} 7. c3 {[%clk 0:02:48]}  O-O {[%clk 0:02:34]} 8. h3 {[%clk 0:02:45]}  Qb6 {[%clk 0:02:21]} 9. Be2 {[%clk 0:02:43]}  Bd7 {[%clk 0:02:20]} 10. a4 {[%clk 0:02:41]}  c4 {[%clk 0:02:18]} 11. O-O {[%clk 0:02:27]}  Rae8 {[%clk 0:02:17]} 12. b3 {[%clk 0:02:22]}  Rc8 {[%clk 0:01:20]} 13. bxc4 {[%clk 0:02:19]}  dxc4 {[%clk 0:01:21]} 14. Qb1 {[%clk 0:02:14]}  Nd5 {[%clk 0:01:19]} 15. Qb2 {[%clk 0:01:56]}  Nxf4 {[%clk 0:01:17]} 16. exf4 {[%clk 0:01:57]}  Nc7 {[%clk 0:01:07]} 17. Rfb1 {[%clk 0:01:51]}  Nxb5 {[%clk 0:01:04]} 18. axb5 {[%clk 0:01:50]}  Bf5 {[%clk 0:01:05]} 19. Re1 {[%clk 0:01:49]}  Rfd8 {[%clk 0:01:04]} 20. Ne5 {[%clk 0:01:48]}  Bxe5 {[%clk 0:00:55]} 21. fxe5 {[%clk 0:01:47]}  Rd5 {[%clk 0:00:56]} 22. Bf3 {[%clk 0:01:34]}  Rxb5 {[%clk 0:00:56]} 23. Qd2 {[%clk 0:01:35]}  Kg7 {[%clk 0:00:53]} 24. d5 {[%clk 0:01:32]}  Rb2 {[%clk 0:00:53]} 25. Qf4 {[%clk 0:01:27]}  Qxf2+ {[%clk 0:00:53]} 26. Kh2 {[%clk 0:01:26]}  a6 {[%clk 0:00:51]} 27. e6 {[%clk 0:01:18]}  fxe6 {[%clk 0:00:40]} 28. Qe5+ {[%clk 0:01:15]}  Kg8 {[%clk 0:00:40]} 29. dxe6 {[%clk 0:00:51]}  Qxf3 {[%clk 0:00:40]} 0-1


[Site "https://www.chess.com"]

[Event "Titled Tuesday Blitz May 9 Late 2023"]
[White "Hollan, Petr"]
[Black "Sai Krishna G V"]
[WhiteFideId "360945"]
[BlackFideId "5028280"]
[WhiteElo "2254"]
[BlackElo "2359"]
[Result "1-0"]
[Round "02"]
[TimeControl "180+2"]
[Date "2023.05.09"]
[WhiteClock "0:00:12"]
[BlackClock "0:01:14"]

1. e4 {[%clk 0:03:00]}  e5 {[%clk 0:02:59]} 2. Nf3 {[%clk 0:03:01]}  Nc6 {[%clk 0:02:59]} 3. Bb5 {[%clk 0:03:01]}  a6 {[%clk 0:03:00]} 4. Ba4 {[%clk 0:03:01]}  d6 {[%clk 0:03:01]} 5. c3 {[%clk 0:02:59]}  f5 {[%clk 0:03:01]} 6. exf5 {[%clk 0:02:56]}  Bxf5 {[%clk 0:03:01]} 7. d4 {[%clk 0:02:56]}  e4 {[%clk 0:03:01]} 8. d5 {[%clk 0:02:44]}  exf3 {[%clk 0:02:59]} 9. dxc6 {[%clk 0:02:43]}  b5 {[%clk 0:02:55]} 10. Bc2 {[%clk 0:02:25]}  Qe7+ {[%clk 0:02:49]} 11. Be3 {[%clk 0:02:23]}  fxg2 {[%clk 0:02:45]} 12. Rg1 {[%clk 0:02:23]}  Be4 {[%clk 0:02:45]} 13. Bxe4 {[%clk 0:02:05]}  Qxe4 {[%clk 0:02:46]} 14. a4 {[%clk 0:01:58]}  Qxc6 {[%clk 0:02:44]} 15. Qh5+ {[%clk 0:01:38]}  g6 {[%clk 0:02:41]} 16. axb5 {[%clk 0:01:37]}  Qe4 {[%clk 0:02:23]} 17. Qe2 {[%clk 0:01:33]}  Be7 {[%clk 0:02:16]} 18. bxa6 {[%clk 0:01:26]}  Nf6 {[%clk 0:02:15]} 19. Qb5+ {[%clk 0:01:16]}  Kf7 {[%clk 0:02:13]} 20. Nd2 {[%clk 0:01:16]}  Qc2 {[%clk 0:02:08]} 21. Qc4+ {[%clk 0:00:39]}  d5 {[%clk 0:02:06]} 22. Qxc7 {[%clk 0:00:37]}  Qxb2 {[%clk 0:02:06]} 23. Qa5 {[%clk 0:00:35]}  Rhc8 {[%clk 0:01:51]} 24. Rxg2 {[%clk 0:00:35]}  Rxc3 {[%clk 0:01:49]} 25. Rb1 {[%clk 0:00:20]}  Rc1+ {[%clk 0:01:43]} 26. Rxc1 {[%clk 0:00:20]}  Qxc1+ {[%clk 0:01:44]} 27. Ke2 {[%clk 0:00:20]}  Qc6 {[%clk 0:01:39]} 28. a7 {[%clk 0:00:19]}  d4 {[%clk 0:01:40]} 29. Qa2+ {[%clk 0:00:17]}  Kg7 {[%clk 0:01:38]} 30. Bxd4 {[%clk 0:00:16]}  Qxg2 {[%clk 0:01:37]} 31. Qe6 {[%clk 0:00:17]}  Qg4+ {[%clk 0:01:28]} 32. Qxg4 {[%clk 0:00:16]}  Rxa7 {[%clk 0:01:26]} 33. Qe6 {[%clk 0:00:15]}  Bd8 {[%clk 0:01:22]} 34. Bxa7 {[%clk 0:00:13]}  Nh5 {[%clk 0:01:17]} 35. Qe5+ {[%clk 0:00:13]}  Bf6 {[%clk 0:01:17]} 36. Qc7+ {[%clk 0:00:12]}  Kh6 {[%clk 0:01:17]} 37. Be3+ {[%clk 0:00:13]}  g5 {[%clk 0:01:16]} 38. Ne4 {[%clk 0:00:12]}  Kg6 {[%clk 0:01:13]} 39. Qd6 {[%clk 0:00:12]}  h6 {[%clk 0:01:12]} 40. Nxf6 {[%clk 0:00:13]}  Nxf6 {[%clk 0:01:13]} 41. Bd4 {[%clk 0:00:13]}  Kh5 {[%clk 0:01:13]} 42. Qxf6 {[%clk 0:00:14]}  g4 {[%clk 0:01:13]} 43. Qf4 {[%clk 0:00:13]}  g3 {[%clk 0:01:13]} 44. Qf3+ {[%clk 0:00:11]}  Kh4 {[%clk 0:01:12]} 45. Qxg3+ {[%clk 0:00:11]}  Kh5 {[%clk 0:01:13]} 46. Qh3+ {[%clk 0:00:11]}  Kg5 {[%clk 0:01:13]} 47. Be3+ {[%clk 0:00:11]}  Kg6 {[%clk 0:01:13]} 48. Qxh6+ {[%clk 0:00:12]}  Kf5 {[%clk 0:01:14]} 49. Qg5+ {[%clk 0:00:12]}  Ke4 {[%clk 0:01:14]} 50. f3# {[%clk 0:00:12]} 1-0


[Site "https://www.chess.com"]

[Event "Titled Tuesday Blitz May 9 Late 2023"]
[White "Averjanov, Alexey"]
[Black "Bryant, Todd"]
[WhiteFideId "14109867"]
[BlackFideId "2031299"]
[WhiteElo "2691"]
[BlackElo "2365"]
[Result "1-0"]
[Round "02"]
[TimeControl "180+2"]
[Date "2023.05.09"]
[WhiteClock "0:01:04"]
[BlackClock "0:00:00"]

1. d4 {[%clk 0:02:57]}  Nf6 {[%clk 0:02:57]} 2. c3 {[%clk 0:02:57]}  g6 {[%clk 0:02:56]} 3. Nf3 {[%clk 0:02:57]}  Bg7 {[%clk 0:02:56]} 4. Bf4 {[%clk 0:02:57]}  d6 {[%clk 0:02:56]} 5. e3 {[%clk 0:02:58]}  O-O {[%clk 0:02:56]} 6. Be2 {[%clk 0:02:58]}  Nbd7 {[%clk 0:02:56]} 7. h3 {[%clk 0:02:58]}  b6 {[%clk 0:02:57]} 8. a4 {[%clk 0:02:57]}  a5 {[%clk 0:02:56]} 9. Nbd2 {[%clk 0:02:56]}  Bb7 {[%clk 0:02:57]} 10. O-O {[%clk 0:02:54]}  Re8 {[%clk 0:02:57]} 11. Bh2 {[%clk 0:02:53]}  e5 {[%clk 0:02:56]} 12. dxe5 {[%clk 0:02:53]}  dxe5 {[%clk 0:02:57]} 13. Qb3 {[%clk 0:02:53]}  Qe7 {[%clk 0:02:51]} 14. Rad1 {[%clk 0:02:49]}  Nc5 {[%clk 0:02:50]} 15. Qa3 {[%clk 0:02:49]}  e4 {[%clk 0:02:47]} 16. Nd4 {[%clk 0:02:46]}  Rac8 {[%clk 0:02:39]} 17. Bb5 {[%clk 0:02:42]}  Red8 {[%clk 0:02:28]} 18. Nc6 {[%clk 0:02:35]}  Bxc6 {[%clk 0:02:24]} 19. Bxc6 {[%clk 0:02:36]}  Qe6 {[%clk 0:02:12]} 20. Bb5 {[%clk 0:02:34]}  Qf5 {[%clk 0:01:58]} 21. Nb3 {[%clk 0:02:24]}  Rxd1 {[%clk 0:01:35]} 22. Rxd1 {[%clk 0:02:23]}  Qh5 {[%clk 0:01:35]} 23. Rd2 {[%clk 0:02:16]}  Ne6 {[%clk 0:01:19]} 24. Qe7 {[%clk 0:02:09]}  c5 {[%clk 0:00:47]} 25. Qb7 {[%clk 0:02:00]}  Rd8 {[%clk 0:00:35]} 26. Qxb6 {[%clk 0:01:51]}  Rxd2 {[%clk 0:00:18]} 27. Nxd2 {[%clk 0:01:52]}  Qd1+ {[%clk 0:00:18]} 28. Nf1 {[%clk 0:01:52]}  Nd5 {[%clk 0:00:11]} 29. Qxa5 {[%clk 0:01:42]}  h5 {[%clk 0:00:06]} 30. Qa8+ {[%clk 0:01:40]}  Kh7 {[%clk 0:00:04]} 31. Bc4 {[%clk 0:01:35]}  Nb6 {[%clk 0:00:03]} 32. Qxe4 {[%clk 0:01:32]}  Ng5 {[%clk 0:00:02]} 33. Qd3 {[%clk 0:01:27]}  Qxd3 {[%clk 0:00:02]} 34. Bxd3 {[%clk 0:01:28]}  Nxa4 {[%clk 0:00:02]} 35. b4 {[%clk 0:01:20]}  cxb4 {[%clk 0:00:03]} 36. cxb4 {[%clk 0:01:20]}  Nc3 {[%clk 0:00:03]} 37. b5 {[%clk 0:01:14]}  Ne6 {[%clk 0:00:03]} 38. b6 {[%clk 0:01:13]}  Nc5 {[%clk 0:00:04]} 39. Bc4 {[%clk 0:01:10]}  N3a4 {[%clk 0:00:04]} 40. Bc7 {[%clk 0:01:06]}  Kg8 {[%clk 0:00:00]} 41. Bd5 {[%clk 0:01:04]} 1-0


[Site "https://www.chess.com"]

[Event "Titled Tuesday Blitz May 9 Late 2023"]
[White "Mihajlov, Sebastian"]
[Black "Chabris, Christopher"]
[WhiteFideId "1512110"]
[BlackFideId "2005263"]
[WhiteElo "2478"]
[BlackElo "2358"]
[Result "1-0"]
[Round "02"]
[TimeControl "180+2"]
[Date "2023.05.09"]
[WhiteClock "0:00:16"]
[BlackClock "0:00:00"]

1. d4 {[%clk 0:03:00]}  Nf6 {[%clk 0:02:59]} 2. Nf3 {[%clk 0:03:00]}  e6 {[%clk 0:02:59]} 3. e3 {[%clk 0:03:00]}  c5 {[%clk 0:02:58]} 4. Bd3 {[%clk 0:03:00]}  Nc6 {[%clk 0:02:58]} 5. O-O {[%clk 0:03:01]}  d5 {[%clk 0:02:57]} 6. b3 {[%clk 0:03:01]}  Be7 {[%clk 0:02:54]} 7. Bb2 {[%clk 0:03:01]}  O-O {[%clk 0:02:54]} 8. Nbd2 {[%clk 0:03:00]}  b6 {[%clk 0:02:47]} 9. Ne5 {[%clk 0:02:59]}  Nb4 {[%clk 0:02:41]} 10. Be2 {[%clk 0:02:57]}  cxd4 {[%clk 0:02:36]} 11. exd4 {[%clk 0:02:57]}  Ba6 {[%clk 0:02:30]} 12. c4 {[%clk 0:02:46]}  dxc4 {[%clk 0:02:21]} 13. bxc4 {[%clk 0:02:47]}  Bb7 {[%clk 0:02:13]} 14. Ndf3 {[%clk 0:02:29]}  Nc6 {[%clk 0:01:58]} 15. Rc1 {[%clk 0:02:28]}  Rc8 {[%clk 0:01:57]} 16. Qa4 {[%clk 0:02:24]}  Ne4 {[%clk 0:01:43]} 17. Rfd1 {[%clk 0:02:23]}  a6 {[%clk 0:01:33]} 18. Qb3 {[%clk 0:01:59]}  Na5 {[%clk 0:01:26]} 19. Qe3 {[%clk 0:01:57]}  Qe8 {[%clk 0:01:16]} 20. Bd3 {[%clk 0:01:49]}  Nf6 {[%clk 0:01:09]} 21. Ng5 {[%clk 0:01:34]}  Nc6 {[%clk 0:00:52]} 22. Qh3 {[%clk 0:01:28]}  h6 {[%clk 0:00:48]} 23. Nxe6 {[%clk 0:01:22]}  Nxe5 {[%clk 0:00:46]} 24. dxe5 {[%clk 0:01:18]}  fxe6 {[%clk 0:00:45]} 25. Qxe6+ {[%clk 0:01:15]}  Qf7 {[%clk 0:00:43]} 26. Qxf7+ {[%clk 0:01:15]}  Rxf7 {[%clk 0:00:43]} 27. exf6 {[%clk 0:01:13]}  Bxf6 {[%clk 0:00:43]} 28. Bg6 {[%clk 0:00:53]}  Rfc7 {[%clk 0:00:40]} 29. Bxf6 {[%clk 0:00:52]}  gxf6 {[%clk 0:00:40]} 30. Rb1 {[%clk 0:00:49]}  Rxc4 {[%clk 0:00:36]} 31. Rxb6 {[%clk 0:00:50]}  Rc1 {[%clk 0:00:34]} 32. Rb1 {[%clk 0:00:46]}  Rxd1+ {[%clk 0:00:31]} 33. Rxd1 {[%clk 0:00:47]}  Bc6 {[%clk 0:00:27]} 34. h4 {[%clk 0:00:45]}  Kg7 {[%clk 0:00:27]} 35. h5 {[%clk 0:00:45]}  Rb8 {[%clk 0:00:23]} 36. Rd6 {[%clk 0:00:44]}  Bb5 {[%clk 0:00:19]} 37. Kh2 {[%clk 0:00:31]}  Rc8 {[%clk 0:00:18]} 38. Kg3 {[%clk 0:00:29]}  Rc3+ {[%clk 0:00:17]} 39. f3 {[%clk 0:00:29]}  Re3 {[%clk 0:00:16]} 40. Rb6 {[%clk 0:00:29]}  Re2 {[%clk 0:00:15]} 41. Rb7+ {[%clk 0:00:28]}  Kg8 {[%clk 0:00:15]} 42. Rb8+ {[%clk 0:00:24]}  Kg7 {[%clk 0:00:15]} 43. Rb7+ {[%clk 0:00:25]}  Kg8 {[%clk 0:00:15]} 44. a3 {[%clk 0:00:20]}  Rb2 {[%clk 0:00:12]} 45. a4 {[%clk 0:00:17]}  Rb4 {[%clk 0:00:06]} 46. axb5 {[%clk 0:00:17]}  axb5 {[%clk 0:00:07]} 47. Be8 {[%clk 0:00:16]}  Rb2 {[%clk 0:00:00]} 48. Bxb5 {[%clk 0:00:16]} 1-0


[Site "https://www.chess.com"]